fUSD/lending_fUSD_20260116
["ID","MTS","AMOUNT","RATE_DAILY","PERIOD"]
[402206908,1768600920263,-465.00268908,0.00013869,2]
[402206909,1768600922930,-34.99731092,0.00013869,2]
[402206910,1768600922978,-497.56180398,0.00013869,2]
[402206911,1768600923016,-500.0,0.00013869,2]
[402206912,1768600923059,-500.0,0.00013869,2]
[402206913,1768600923100,-500.0,0.00013869,2]
[402206914,1768600923141,-500.0,0.00013869,2]
[402206915,1768600923179,-500.0,0.00013869,2]
[402206916,1768600923215,-500.0,0.00013869,2]
[402206917,1768600923263,-500.0,0.00013869,2]
[402206918,1768600923327,-500.0,0.00013869,2]
[402206919,1768600923377,-434.8917702,0.00013869,2]
[402206920,1768600923502,-65.1082298,0.00013869,2]
[402206921,1768600923545,-500.0,0.00013869,2]
[402206922,1768600923597,-500.0,0.00013869,2]
[402206923,1768600923635,-500.0,0.00013869,2]
[402206924,1768600923673,-500.0,0.00013869,2]
[402206925,1768600923711,-500.0,0.00013869,2]
[402206926,1768600923749,-500.0,0.00013869,2]
[402206927,1768600923786,-500.0,0.00013869,2]
[402206928,1768600923823,-500.0,0.00013869,2]
[402206929,1768600923863,-500.0,0.00013869,2]
[402206930,1768600923902,-369.7935404,0.00013869,2]
[402206931,1768600946436,5533.0,0.000145,5]
[402206932,1768600946660,5533.0,0.000142,3]
[402206933,1768600977965,5533.0,0.000145,5]
[402206934,1768600978224,5533.0,0.000142,3]
[402206935,1768600995561,10000.01,0.00013049,2]
[402206936,1768600995585,7511.66,0.00013049,2]
[402206937,1768601008661,2339.31,0.00013008,2]
[402206938,1768601009956,5533.0,0.000143,5]
[402206939,1768601010201,5533.0,0.00014,3]
[402206940,1768601041856,5533.0,0.000143,5]
[402206941,1768601041945,-152.622731,0.00013527,2]
[402206942,1768601041975,-500.0,0.00013596,2]
[402206943,1768601042004,-515.0,0.00013596,2]
[402206944,1768601042033,-150.0,0.00013596,2]
[402206945,1768601042063,-500.0,0.00013651,2]
[402206946,1768601042094,-515.0,0.00013651,2]
[402206947,1768601042124,-500.0,0.00013706,2]
[402206948,1768601042154,-515.0,0.00013706,2]
[402206949,1768601042183,-172.79325491,0.0001376,2]
[402206950,1768601042214,-515.0,0.0001376,2]
[402206951,1768601042245,-178.08286446,0.00013769,2]
[402206952,1768601042274,-178.08286445,0.0001377,2]
[402206953,1768601042310,-150.0,0.0001377,2]
[402206954,1768601042340,-300.0,0.0001377,2]
[402206955,1768601042601,5533.0,0.00014,3]
[402206956,1768601073779,5017.0,0.000142,5]
[402206957,1768601101680,210.54,0.00011042,2]
[402206958,1768601101912,210.54,0.00012147,2]
[402206959,1768601102139,210.54,0.00013251,2]
[402206960,1768601199833,150.0,0.00013118,2]
[402206961,1768601202008,-349.03971319,0.00013425,2]
[402206962,1768601205540,-208.75968596,0.00013425,2]
[402206963,1768601207024,-204.24903758,0.00013425,2]
[402206964,1768601210763,-300.0,0.00013425,2]
[402206965,1768601212548,-270.15501241,0.00013425,2]
[402206966,1768601214105,-214.55786848,0.00013425,2]
[402206967,1768601216300,-181.39136137,0.00013425,2]
[402206968,1768601218324,-151.21241997,0.00013425,2]
[402206969,1768601222056,-188.68714818,0.00013425,2]
[402206970,1768601224314,-294.1945897,0.00013425,2]
[402206971,1768601225898,-877.75316316,0.00013425,2]
[402206972,1768601225931,-500.0,0.000136,2]
[402206973,1768601225965,-500.0,0.0001376,2]
[402206974,1768601225996,-500.0,0.0001376,2]
[402206975,1768601226030,-429.0,0.0001376,2]
[402206976,1768601226068,-500.0,0.0001377,2]
[402206977,1768601226105,-500.0,0.0001377,2]
[402206978,1768601226143,-500.0,0.0001377,2]
[402206979,1768601226179,-500.0,0.0001377,2]
[402206980,1768601227341,404.69367618,0.0001307,2]
[402206981,1768601227367,806.82632382,0.0001307,2]
[402206982,1768601232404,-500.0,0.0001377,2]
[402206983,1768601232439,-500.0,0.0001377,2]
[402206984,1768601232473,-500.0,0.0001377,2]
[402206985,1768601232507,-500.0,0.0001377,2]
[402206986,1768601232543,-500.0,0.0001377,2]
[402206987,1768601232575,-500.0,0.0001377,2]
[402206988,1768601232607,-500.0,0.0001377,2]
[402206989,1768601232641,-500.0,0.0001377,2]
[402206990,1768601232676,-500.0,0.0001377,2]
[402206991,1768601232713,-500.0,0.0001377,2]
[402206992,1768601235889,-314.80572858,0.0001377,2]
[402206993,1768601235924,-500.0,0.0001377,2]
[402206994,1768601235960,-500.0,0.0001377,2]
[402206995,1768601235994,-500.0,0.0001377,2]
[402206996,1768601236029,-500.0,0.0001377,2]
[402206997,1768601236067,-500.0,0.0001377,2]
[402206998,1768601236102,-500.0,0.0001377,2]
[402206999,1768601236137,-500.0,0.0001377,2]
[402207000,1768601236172,-500.0,0.0001377,2]
[402207001,1768601236205,-500.0,0.0001377,2]
[402207002,1768601238988,-500.0,0.0001377,2]
[402207003,1768601239025,-500.0,0.0001377,2]
[402207004,1768601239059,-500.0,0.0001377,2]
[402207005,1768601239094,-500.0,0.0001377,2]
[402207006,1768601239129,-500.0,0.0001377,2]
[402207007,1768601239163,-500.0,0.0001377,2]
[402207008,1768601239197,-500.0,0.0001377,2]
[402207009,1768601239232,-281.48057286,0.0001377,2]
[402207010,1768601239266,-499.99999999,0.0001377,2]
[402207011,1768601239550,-237.0488543,0.0001377,2]
[402207012,1768601239749,1300.35457403,0.00013143,2]
[402207013,1768601239771,552.06542597,0.00013143,2]
[402207014,1768601263888,1600.0,0.000139,5]
[402207015,1768601269475,2662.83,0.0001321,2]
[402207016,1768601309822,-415.52668373,0.0001367,2]
[402207017,1768601309854,-415.52668371,0.00013693,2]
[402207018,1768601309884,-150.0,0.0001376,2]
[402207019,1768601309927,-451.0,0.0001376,2]
[402207020,1768601309960,-500.0,0.0001376,2]
[402207021,1768601309990,-500.0,0.0001376,2]
[402207022,1768601310020,-250.0,0.00013765,2]
[402207023,1768601310052,-962.9511457,0.0001377,2]
[402207024,1768601310083,-150.0,0.0001377,2]
[402207025,1768601310114,-300.0,0.0001377,2]
[402207026,1768601310144,-300.0,0.0001377,2]
[402207027,1768601310896,-2170.5061,0.00013771,2]
[402207028,1768601315287,-7403.02257244,0.00013771,2]
[402207029,1768601315472,-10000.01,0.00013771,2]
[402207030,1768601315611,-10000.01,0.00013771,2]
[402207031,1768601315736,-415.52668371,0.00013715,2]
[402207032,1768601315783,-9168.95663258,0.00013771,2]
[402207033,1768601318850,-409.75309498,0.00013771,2]
[402207034,1768601318879,-840.3356,0.00013771,2]
[402207035,1768601318908,-1977.8039,0.00013771,2]
[402207036,1768601318951,-1044.22481004,0.00013771,2]
[402207037,1768601319034,-1455.77518996,0.00013771,2]
[402207038,1768601319068,-250.0,0.00013783,2]
[402207039,1768601319098,-500.0,0.00013815,2]
[402207040,1768601319129,-500.0,0.00013815,2]
[402207041,1768601319160,-429.0,0.00013815,2]
[402207042,1768601319191,-150.0,0.00013815,2]
[402207043,1768601319221,-451.0,0.00013815,2]
[402207044,1768601319250,-500.0,0.00013815,2]
[402207045,1768601319279,-500.0,0.00013815,2]
[402207046,1768601319310,-500.0,0.0001387,2]
[402207047,1768601319346,-500.0,0.0001387,2]
[402207048,1768601319378,-429.0,0.0001387,2]
[402207049,1768601319413,-150.0,0.0001387,2]
[402207050,1768601319511,-451.0,0.0001387,2]
[402207051,1768601319541,-500.0,0.0001387,2]
[402207052,1768601319570,-500.0,0.0001387,2]
[402207053,1768601319602,-200.0,0.0001387,2]
[402207054,1768601319634,-200.0,0.0001387,2]
[402207055,1768601319664,-200.0,0.0001387,2]
[402207056,1768601319694,-500.0,0.0001387,2]
[402207057,1768601319728,-500.0,0.0001387,2]
[402207058,1768601319761,-500.0,0.0001387,2]
[402207059,1768601319791,-500.0,0.0001387,2]
[402207060,1768601319820,-500.0,0.0001387,2]
[402207061,1768601319851,-398.01,0.0001387,2]
[402207062,1768601319968,-101.99,0.0001387,2]
[402207063,1768601319999,-500.0,0.0001387,2]
[402207064,1768601320381,-500.0,0.0001387,2]
[402207065,1768601320417,-500.0,0.0001387,2]
[402207066,1768601320450,-525.56138561,0.0001387,2]
[402207067,1768601320481,-500.0,0.0001387,2]
[402207068,1768601320511,-151.0,0.0001387,2]
[402207069,1768601320541,-151.0,0.0001387,2]
[402207070,1768601320572,-151.0,0.0001387,2]
[402207071,1768601320600,-151.0,0.0001387,2]
[402207072,1768601320630,-151.0,0.0001387,2]
[402207073,1768601320659,-151.0,0.0001387,2]
[402207074,1768601320687,-151.0,0.0001387,2]
[402207075,1768601320716,-151.0,0.0001387,2]
[402207076,1768601320746,-151.0,0.0001387,2]
[402207077,1768601320776,-151.0,0.0001387,2]
[402207078,1768601320806,-151.0,0.0001387,2]
[402207079,1768601320836,-626.42753699,0.0001387,2]
[402207080,1768601320983,-425.59210282,0.0001387,2]
[402207081,1768601321014,-500.0,0.0001387,2]
[402207082,1768601321043,-500.0,0.0001387,2]
[402207083,1768601321072,-500.0,0.0001387,2]
[402207084,1768601321100,-500.0,0.0001387,2]
[402207085,1768601321130,-517.07744156,0.0001387,2]
[402207086,1768601322510,-164.96471324,0.0001387,2]
[402207087,1768601322528,-517.07744156,0.0001387,2]
[402207088,1768601322542,-4114.67091124,0.0001387,2]
[402207089,1768601323279,-10000.01,0.0001387,2]
[402207090,1768601323298,-10000.01,0.0001387,2]
[402207091,1768601323317,-10000.01,0.0001387,2]
[402207092,1768601323342,-8807.63836572,0.0001387,2]
[402207093,1768601323353,-500.31,0.0001387,2]
[402207094,1768601323363,-150.0,0.0001387,2]
[402207095,1768601323372,-150.0,0.0001387,2]
[402207096,1768601343615,-193.314864,0.00013801,2]
[402207097,1768601343647,-182.80812275,0.00013824,2]
[402207098,1768601343679,-300.0,0.0001387,2]
[402207099,1768601343711,-150.0,0.0001387,2]
[402207100,1768601346106,-770.78874412,0.00013871,2]
[402207101,1768601349834,-256.4178067,0.00013871,2]
[402207102,1768601350346,300.0,0.0001387,2]
[402207103,1768601351699,-250.0,0.00013871,2]
[402207104,1768601355587,-195.0,0.00013871,2]
[402207105,1768601370568,8047.7640265,0.00013671,2]
[402207106,1768601370595,10000.01,0.00013671,2]
[402207107,1768601370622,10000.01,0.00013671,2]
[402207108,1768601370648,10000.01,0.00013671,2]
[402207109,1768601370674,10000.01,0.00013671,2]
[402207110,1768601370979,10000.01,0.00013671,2]
[402207111,1768601371006,10000.01,0.00013671,2]
[402207112,1768601371033,10000.01,0.00013671,2]
[402207113,1768601371059,10000.01,0.00013671,2]
[402207114,1768601382748,-1652.2459735,0.00013671,2]
[402207115,1768601382876,-10000.01,0.00013671,2]
[402207116,1768601383043,-10000.01,0.00013671,2]
[402207117,1768601383187,-10000.01,0.00013671,2]
[402207118,1768601385839,-10000.01,0.00013671,2]
[402207119,1768601389234,-10000.01,0.00013671,2]
[402207120,1768601389249,-10000.01,0.00013671,2]
[402207121,1768601389301,-10000.01,0.00013671,2]
[402207125,1768601431754,-475.431986,0.00013601,2]
[402207126,1768601431764,-1200.0,0.0001367,2]
[402207127,1768601431774,-263.0,0.0001367,2]
[402207128,1768601431784,-156.62424356,0.00013671,2]
[402207129,1768601431796,-30506.99761208,0.00013671,2]
[402207130,1768601431808,-550.45616674,0.00013671,2]
[402207131,1768601431859,-2238.41975202,0.00013671,2]
[402207132,1768601431878,-4625.7895929,0.00013671,2]
[402207133,1768601431934,-2535.48197541,0.00013671,2]
[402207134,1768601431945,-7517.48012438,0.00013671,2]
[402207135,1768601431956,-2700.0,0.00013671,2]
[402207136,1768601431967,-532.82685681,0.00013671,2]
[402207137,1768601431978,-345.51780687,0.00013671,2]
[402207138,1768601431989,-3528.14577167,0.00013671,2]
[402207139,1768601432018,-18065.03840616,0.00013671,2]
[402207140,1768601432030,-5164.09646268,0.00013671,2]
[402207169,1768601438082,-16544.25654289,0.00013671,2]
[402207170,1768601438095,-1421.35613554,0.00013671,2]
[402207174,1768601440337,-743867.35255029,0.00013671,2]
[402207175,1768601440347,-2916.5131,0.0001377,2]
[402207176,1768601440357,-4367.7046,0.0001377,2]
[402207178,1768601440366,-2500.0,0.00013771,2]
[402207179,1768601440375,-6776.5689577,0.00013798,2]
[402207180,1768601440386,-3559.34559825,0.00013798,2]
[402207181,1768601440396,-250.0,0.00013898,2]
[402207182,1768601440406,-200.0,0.000139,2]
[402207183,1768601440417,-150.0,0.00013924,2]
[402207184,1768601440429,-451.0,0.00013924,2]
[402207185,1768601440438,-500.0,0.00013924,2]
[402207186,1768601440448,-500.0,0.00013924,2]
[402207187,1768601440457,-33212.9972,0.00013971,2]
[402207188,1768601440468,-1000.0,0.00013971,2]
[402207189,1768601440477,-181.5474637,0.00013979,2]
[402207190,1768601440486,-451.0,0.00013979,2]
[402207191,1768601440496,-500.0,0.00013979,2]
[402207193,1768601440506,-250.0,0.00013979,2]
[402207195,1768601440516,-500.0,0.00014025,2]
[402207196,1768601440525,-500.0,0.00014025,2]
[402207197,1768601440535,-500.0,0.00014025,2]
[402207198,1768601440545,-500.0,0.00014025,2]
[402207199,1768601440554,-150.0,0.00014025,2]
[402207200,1768601440563,-500.0,0.00014025,2]
[402207201,1768601440574,-500.0,0.00014025,2]
[402207202,1768601440583,-500.0,0.00014025,2]
[402207203,1768601440592,-500.0,0.00014025,2]
[402207204,1768601440602,-500.0,0.00014025,2]
[402207205,1768601440612,-150.0,0.00014025,2]
[402207206,1768601440631,-451.0,0.00014034,2]
[402207207,1768601440641,-500.0,0.00014034,2]
[402207208,1768601440650,-200.0,0.00014039,2]
[402207209,1768601440660,-500.0,0.0001408,2]
[402207210,1768601440669,-500.0,0.0001408,2]
[402207211,1768601440679,-500.0,0.0001408,2]
[402207212,1768601440689,-500.0,0.0001408,2]
[402207213,1768601440698,-150.0,0.0001408,2]
[402207214,1768601440707,-500.0,0.0001408,2]
[402207215,1768601440716,-500.0,0.0001408,2]
[402207216,1768601440726,-500.0,0.0001408,2]
[402207217,1768601440735,-500.0,0.0001408,2]
[402207218,1768601440745,-500.0,0.0001408,2]
[402207219,1768601440754,-150.0,0.0001408,2]
[402207220,1768601440764,-604.54147957,0.0001408,2]
[402207221,1768601440773,-500.0,0.0001408,2]
[402207222,1768601440783,-500.0,0.0001408,2]
[402207223,1768601440793,-500.0,0.0001408,2]
[402207224,1768601440803,-500.0,0.0001408,2]
[402207225,1768601440812,-500.0,0.0001408,2]
[402207226,1768601440821,-500.0,0.0001408,2]
[402207227,1768601440831,-500.0,0.0001408,2]
[402207228,1768601440840,-500.0,0.0001408,2]
[402207229,1768601440849,-46637.94,0.00014085,2]
[402207230,1768601440859,-451.0,0.00014089,2]
[402207231,1768601440869,-500.0,0.00014089,2]
[402207232,1768601440879,-500.0,0.00014135,2]
[402207233,1768601440888,-500.0,0.00014135,2]
[402207234,1768601440898,-350.0,0.00014135,2]
[402207235,1768601440908,-500.0,0.00014135,2]
[402207236,1768601440917,-150.0,0.00014135,2]
[402207237,1768601440928,-150.0,0.00014135,2]
[402207238,1768601440938,-500.0,0.00014135,2]
[402207239,1768601440948,-500.0,0.00014135,2]
[402207240,1768601440958,-500.0,0.00014135,2]
[402207241,1768601440967,-500.0,0.00014135,2]
[402207242,1768601440981,-150.0,0.00014135,2]
[402207243,1768601440992,-451.0,0.00014144,2]
[402207244,1768601441004,-450.99535401,0.00014144,2]
[402207245,1768601441014,-500.31,0.00014144,2]
[402207246,1768601441025,-200.0,0.00014179,2]
[402207247,1768601441035,-500.0,0.0001418,2]
[402207248,1768601441045,-500.0,0.0001418,2]
[402207249,1768601441055,-285.96192003,0.0001418,2]
[402207250,1768601441064,-500.0,0.00014189,2]
[402207251,1768601441074,-500.0,0.00014189,2]
[402207252,1768601441084,-500.0,0.00014189,2]
[402207253,1768601441093,-500.0,0.00014189,2]
[402207254,1768601441103,-500.0,0.00014189,2]
[402207255,1768601441112,-500.0,0.00014189,2]
[402207256,1768601441122,-500.0,0.00014189,2]
[402207257,1768601441131,-150.0,0.00014189,2]
[402207258,1768601441141,-500.0,0.00014194,2]
[402207259,1768601441150,-500.0,0.00014194,2]
[402207260,1768601441160,-451.0,0.00014198,2]
[402207261,1768601441170,-604.00000001,0.00014244,2]
[402207262,1768601441181,-500.0,0.00014244,2]
[402207263,1768601441191,-500.0,0.00014244,2]
[402207264,1768601441200,-551.64421401,0.00014244,2]
[402207265,1768601441210,-350.0,0.00014244,2]
[402207266,1768601441221,-500.0,0.00014244,2]
[402207267,1768601441230,-236.16592864,0.00014244,2]
[402207268,1768601441240,-451.0,0.00014253,2]
[402207269,1768601441251,-6776.56895766,0.00014254,2]
[402207270,1768601441263,-3559.34559818,0.00014254,2]
[402207271,1768601441274,-923.71300875,0.00014299,2]
[402207272,1768601441284,-500.0,0.00014299,2]
[402207273,1768601441293,-500.0,0.00014299,2]
[402207274,1768601441303,-500.0,0.00014299,2]
[402207275,1768601441312,-451.0,0.00014308,2]
[402207276,1768601441321,-200.0,0.00014321,2]
[402207277,1768601441331,-500.0,0.00014354,2]
[402207278,1768601441341,-500.0,0.00014354,2]
[402207279,1768601441351,-500.0,0.00014354,2]
[402207280,1768601441361,-210.54,0.00014355,2]
[402207281,1768601441371,-451.0,0.00014363,2]
[402207282,1768601441381,-500.0,0.00014409,2]
[402207283,1768601441390,-500.0,0.00014409,2]
[402207284,1768601441400,-451.0,0.00014418,2]
[402207285,1768601441411,-200.0,0.00014418,2]
[402207286,1768601441422,-205.06792171,0.00014418,2]
[402207287,1768601441435,-500.0,0.00014418,2]
[402207288,1768601441446,-500.31,0.00014418,2]
[402207289,1768601441456,-500.0,0.00014463,2]
[402207290,1768601441466,-500.0,0.00014463,2]
[402207291,1768601441478,-200.0,0.00014464,2]
[402207292,1768601441489,-451.0,0.00014472,2]
[402207293,1768601441498,-200.0,0.000145,2]
[402207294,1768601441508,-500.0,0.00014518,2]
[402207295,1768601441519,-643.01588719,0.00014518,2]
[402207296,1768601441530,-451.0,0.00014527,2]
[402207297,1768601441539,-500.0,0.00014573,2]
[402207298,1768601441549,-451.0,0.00014582,2]
[402207299,1768601441559,-500.0,0.00014628,2]
[402207300,1768601441568,-451.0,0.00014637,2]
[402207301,1768601441577,-200.0,0.00014645,2]
[402207302,1768601441587,-500.0,0.00014683,2]
[402207303,1768601441596,-451.0,0.00014692,2]
[402207304,1768601441606,-500.31,0.00014692,2]
[402207305,1768601441615,-6776.56895766,0.0001471,2]
[402207306,1768601441624,-3559.34559818,0.0001471,2]
[402207307,1768601441634,-500.0,0.00014737,2]
[402207308,1768601441644,-451.0,0.00014746,2]
[402207309,1768601441653,-195.0,0.00014767,2]
[402207310,1768601441663,-2500.0,0.00014767,2]
[402207311,1768601441673,-584.51890262,0.00014767,2]
[402207312,1768601441682,-300.0,0.00014767,2]
[402207313,1768601441693,-600.0,0.00014767,2]
[402207314,1768601441703,-392.47456625,0.00014767,2]
[402207315,1768601441713,-200.0,0.00014791,2]
[402207316,1768601441723,-500.0,0.00014792,2]
[402207317,1768601441732,-451.0,0.00014801,2]
[402207318,1768601441741,-500.0,0.00014847,2]
[402207319,1768601441751,-451.0,0.00014856,2]
[402207320,1768601441760,-3300.0,0.000149,5]
[402207321,1768601441770,-500.0,0.00014902,2]
[402207322,1768601441779,-451.0,0.00014911,2]
[402207323,1768601441789,-200.0,0.00014939,2]
[402207324,1768601441799,-570.35,0.00014953,2]
[402207325,1768601441809,-152.0,0.00014957,2]
[402207326,1768601441818,-328.90134145,0.00014959,2]
[402207327,1768601441827,-451.0,0.00014965,2]
[402207328,1768601441837,-201.84989659,0.00014966,2]
[402207329,1768601441847,-500.0,0.00014966,2]
[402207330,1768601441856,-500.31,0.00014966,2]
[402207331,1768601441865,-255.0,0.00014993,2]
[402207332,1768601441875,-459.02149145,0.0001502,2]
[402207333,1768601441884,-1680.0,0.00015037,2]
[402207334,1768601441893,-195.0,0.00015037,2]
[402207335,1768601441902,-200.0,0.00015089,2]
[402207336,1768601441912,-300.0,0.00015136,2]
[402207337,1768601441921,-2500.0,0.00015136,2]
[402207338,1768601441931,-250.0,0.00015136,2]
[402207339,1768601441941,-193.55917639,0.00015147,2]
[402207340,1768601441951,-195.0,0.00015147,2]
[402207341,1768601441961,-6776.56895766,0.00015165,2]
[402207342,1768601441970,-3559.34559818,0.00015165,2]
[402207343,1768601441980,-420.0,0.00015197,2]
[402207344,1768601441995,-500.35,0.0001524,2]
[402207345,1768601442006,-195.0,0.00015258,2]
[402207346,1768601442017,-250.0,0.00015258,2]
[402207347,1768601442030,-182.80812274,0.00015369,2]
[402207348,1768601442040,-210.54,0.00015459,2]
[402207349,1768601442051,-500.0,0.00015514,2]
[402207350,1768601442061,-6776.56895766,0.00015621,2]
[402207351,1768601442070,-3559.34559818,0.00015621,2]
[402207352,1768601442080,-2000.0,0.0001599,2]
[402207353,1768601442090,-2000.0,0.0001599,2]
[402207354,1768601442099,-2000.0,0.00015997,2]
[402207355,1768601442109,-500.0,0.00016062,2]
[402207356,1768601442118,-6776.56895766,0.00016077,2]
[402207357,1768601442128,-3559.34559818,0.00016077,2]
[402207358,1768601442137,-174.61919141,0.00016136,2]
[402207359,1768601442147,-500.0,0.00016136,2]
[402207360,1768601442156,-1000.0,0.00016136,2]
[402207361,1768601442165,-500.0,0.00016136,2]
[402207362,1768601442174,-500.0,0.00016136,2]
[402207363,1768601442183,-1000.0,0.00016136,2]
[402207364,1768601442193,-500.0,0.00016136,2]
[402207365,1768601442202,-500.0,0.00016136,2]
[402207366,1768601442212,-1000.0,0.00016136,2]
[402207367,1768601442221,-500.0,0.00016136,2]
[402207368,1768601442230,-620.0,0.00016136,2]
[402207369,1768601442239,-1000.0,0.00016136,2]
[402207370,1768601442248,-1000.0,0.00016136,2]
[402207371,1768601442258,-1000.0,0.00016136,2]
[402207372,1768601442267,-1000.0,0.00016136,2]
[402207373,1768601442276,-1000.0,0.00016136,2]
[402207374,1768601442286,-1000.0,0.00016136,2]
[402207375,1768601442295,-1000.0,0.00016136,2]
[402207376,1768601442305,-574.12855637,0.00016136,2]
[402207377,1768601442315,-721.12765535,0.00016136,2]
[402207378,1768601442324,-9000.0,0.00016136,2]
[402207379,1768601442334,-9000.0,0.00016136,2]
[402207380,1768601442343,-9000.0,0.00016136,2]
[402207381,1768601442353,-9000.0,0.00016136,2]
[402207382,1768601442362,-9000.0,0.00016136,2]
[402207383,1768601442371,-9000.0,0.00016136,2]
[402207384,1768601442380,-9000.0,0.00016136,2]
[402207385,1768601442390,-250.0,0.00016136,2]
[402207386,1768601442399,-9000.0,0.00016136,2]
[402207387,1768601442409,-250.0,0.00016136,2]
[402207388,1768601442418,-578.20924308,0.00016136,2]
[402207389,1768601442431,-9000.0,0.00016136,2]
[402207390,1768601442441,-250.0,0.00016136,2]
[402207391,1768601442450,-9000.0,0.00016136,2]
[402207392,1768601442460,-1000.0,0.00016136,2]
[402207393,1768601442470,-250.0,0.00016136,2]
[402207394,1768601442479,-250.0,0.00016136,2]
[402207395,1768601442488,-250.0,0.00016136,2]
[402207396,1768601442498,-500.0,0.00016136,2]
[402207397,1768601442508,-322.6107,0.00016136,2]
[402207398,1768601442518,-500.0,0.00016136,2]
[402207399,1768601442528,-250.0,0.00016136,2]
[402207400,1768601442538,-500.0,0.00016136,2]
[402207401,1768601442547,-250.0,0.00016136,2]
[402207402,1768601442556,-250.0,0.00016136,2]
[402207403,1768601442566,-250.0,0.00016136,2]
[402207404,1768601442575,-250.0,0.00016136,2]
[402207405,1768601442584,-250.0,0.00016136,2]
[402207406,1768601442594,-250.0,0.00016136,2]
[402207407,1768601442602,-500.0,0.00016136,2]
[402207408,1768601442612,-250.0,0.00016136,2]
[402207410,1768601442621,-500.0,0.00016136,2]
[402207411,1768601442630,-500.0,0.00016136,2]
[402207412,1768601442639,-2000.0,0.00016136,2]
[402207413,1768601442648,-2000.0,0.00016136,2]
[402207414,1768601442657,-2000.0,0.00016136,2]
[402207415,1768601442666,-1239.0,0.00016136,2]
[402207416,1768601442675,-3000.0,0.00016136,2]
[402207418,1768601442684,-3000.0,0.00016136,2]
[402207420,1768601442694,-3000.0,0.00016136,2]
[402207422,1768601442703,-151.0,0.00016188,2]
[402207424,1768601442712,-9000.0,0.00016191,2]
[402207426,1768601442721,-433.0,0.00016214,2]
[402207427,1768601442731,-500.0,0.00016356,2]
[402207428,1768601442739,-600.0,0.00016356,2]
[402207429,1768601442749,-1500.0,0.00016356,2]
[402207430,1768601442758,-328.90134141,0.00016399,2]
[402207431,1768601442767,-622.09393551,0.00016423,2]
[402207432,1768601442776,-500.0,0.00016438,2]
[402207433,1768601442785,-165.03,0.0001644,2]
[402207435,1768601442794,-500.0,0.00016493,2]
[402207437,1768601442804,-13556.0,0.00016523,2]
[402207438,1768601442812,-6776.56895766,0.00016533,2]
[402207439,1768601442821,-3559.34559818,0.00016533,2]
[402207441,1768601442830,-2351.0,0.00016541,2]
[402207442,1768601442840,-500.0,0.00016548,2]
[402207443,1768601442849,-210.54,0.00016564,2]
[402207444,1768601442858,-500.0,0.00016602,2]
[402207445,1768601442868,-207.4,0.00016609,2]
[402207446,1768601442877,-557.48405346,0.0001661,2]
[402207447,1768601442886,-587.0,0.00016652,2]
[402207448,1768601442895,-500.0,0.00016657,2]
[402207449,1768601442904,-181.08010149,0.00016684,2]
[402207450,1768601442913,-595.37131296,0.00016684,2]
[402207451,1768601442922,-500.0,0.00016712,2]
[402207452,1768601442932,-167.9,0.00016712,2]
[402207453,1768601442941,-500.0,0.00016767,2]